[Event "AZE-ch Women 2019"]
[Site "Baku"]
[Date "2019.02.04"]
[Round "1.1"]
[White "Mammadzada, Gunay"]
[Black "Hajiyeva, Laman"]
[Result "1-0"]
[ECO "C09"]
[WhiteElo "2422"]
[BlackElo "2040"]
[Annotator "ChessBase"]
[PlyCount "119"]
[EventDate "2019.02.04"]
[EventType "swiss"]
[EventCountry "AZE"]
[SourceTitle "playchess.com"]
[Source "ChessBase"]
[SourceQuality "1"]
[TimeControl "40/5400+30:1800+30"]

1. e4 {[%emt 0:00:00]} e6 {[%emt 0:00:00]} 2. d4 {[%emt 0:00:00]} d5 {[%emt 0:00:00]} 3. Nd2 {[%emt 0:00:00]} c5 {[%emt 0:00:00]} 4. Ngf3 {[%emt 0:00:01]} Nc6 {[%emt 0:00:00]} 5. exd5 {[%emt 0:00:15]} exd5 {[%emt 0:00:00]} 6. Bb5 {[%emt 0:00:06]} Bd6 {[%emt 0:00:12]} 7. dxc5 {[%emt 0:00:28]} Bxc5 {[%emt 0:00:05]} 8. O-O {[%emt 0:00:10]} Nge7 {[%emt 0:00:23]} 9. Nb3 {[%emt 0:00:58]} Bd6 {[%emt 0:00:56]} 10. c3 {[%emt 0:02:49]} O-O {[%emt 0:00:15]} 11. Bd3 {[%emt 0:00:21]} Ng6 {[%emt 0:10:40]} 12. Bc2 {[%emt 0:10:57]} Bc7 {[%emt 0:20:17]} 13. h3 {[%emt 0:11:25]} Qd6 {[%emt 0:03:05]} 14. Qd3 {[%emt 0:03:10]} Re8 {[%emt 0:15:23]} 15. Bd2 {[%emt 0:04:58]} Re4 {[%emt 0:10:19]} 16. Nbd4 {[%emt 0:28:29]} Nh4 {[%emt 0:21:52]} 17. g3 {[%emt 0:02:14]} Nxd4 {[%emt 0:01:44]} 18. cxd4 {[%emt 0:08:40]} Nf5 {[%emt 0:05:05]} 19. Ng5 {[%emt 0:06:58]} Rxd4 {[%emt 0:02:18]} 20. Qe2 {[%emt 0:00:02]} h6 {[%emt 0:04:17]} 21. Nf3 {[%emt 0:03:36]} Rc4 {[%emt 0:00:56]} 22. Bd3 {[%emt 0:00:49]} Rc6 {[%emt 0:00:48]} 23. Rfe1 {[%emt 0:02:57]} Be6 {[%emt 0:01:25]} 24. Bxf5 {[%emt 0:02:26]} Bxf5 {[%emt 0:00:01]} 25. Nd4 {[%emt 0:00:06]} Bxh3 {[%emt 0:00:11]} 26. Nxc6 {[%emt 0:00:09]} bxc6 {[%emt 0:00:03]} 27. Bf4 {[%emt 0:01:06]} Qd7 {[%emt 0:00:25]} 28. Bxc7 {[%emt 0:00:50]} Qxc7 {[%emt 0:00:01]} 29. Rac1 {[%emt 0:02:09]} Rc8 {[%emt 0:00:52]} 30. Rc3 {[%emt 0:02:08]} Be6 {[%emt 0:01:39]} 31. Rc5 {[%emt 0:01:04]} g6 {[%emt 0:01:14]} 32. b4 {[%emt 0:01:32]} Qb8 {[%emt 0:00:53]} 33. Qd2 {[%emt 0:00:39]} h5 {[%emt 0:00:15]} 34. Qd4 {[%emt 0:01:11]} Qb6 {[%emt 0:00:33]} 35. Rec1 {[%emt 0:04:08]} Re8 {[%emt 0:00:23]} 36. Qf4 {[%emt 0:00:36]} Bd7 {[%emt 0:00:14]} 37. a3 {[%emt 0:00:19]} a6 {[%emt 0:00:43]} 38. R5c3 {[%emt 0:00:27]} Re6 {[%emt 0:00:35]} 39. Rf3 {[%emt 0:00:20]} Be8 {[%emt 0:00:37]} 40. Rc5 {[%emt 0:00:00]} Qd8 {[%emt 0:00:00]} 41. Re3 {[%emt 0:03:44]} Rxe3 {[%emt 0:05:28]} 42. Qxe3 {[%emt 0:00:12]} Bd7 {[%emt 0:02:15]} 43. Qe5 {[%emt 0:06:25]} h4 {[%emt 0:01:51]} 44. Rc3 {[%emt 0:03:25]} h3 {[%emt 0:07:46]} 45. Qd6 {[%emt 0:03:22]} Qe8 {[%emt 0:02:33]} 46. Re3 {[%emt 0:00:17]} Be6 {[%emt 0:00:07]} 47. Kh2 {[%emt 0:01:41]} Qc8 {[%emt 0:04:38]} 48. Rc3 {[%emt 0:02:50]} Bd7 {[%emt 0:00:42]} 49. a4 {[%emt 0:01:55]} Qe8 {[%emt 0:01:55]} 50. Re3 {[%emt 0:00:14]} Be6 {[%emt 0:00:14]} 51. g4 {[%emt 0:01:12]} Qc8 {[%emt 0:02:52]} 52. f3 {[%emt 0:02:27]} Qb7 {[%emt 0:02:29]} 53. Kxh3 {[%emt 0:03:02]} Qb6 {[%emt 0:03:55]} 54. Qc5 {[%emt 0:00:49]} Qb8 {[%emt 0:00:21]} 55. Qd4 {[%emt 0:00:16]} Qd8 {[%emt 0:00:31]} 56. Kg2 {[%emt 0:01:36]} Qb8 {[%emt 0:01:08]} 57. Re1 {[%emt 0:00:15]} Qd8 {[%emt 0:00:22]} 58. Rh1 {[%emt 0:00:14]} f6 {[%emt 0:00:03]} 59. g5 {[%emt 0:00:29]} Bf5 {[%emt 0:00:37]} 60. gxf6 {[%emt 0:00:53]} 1-0

[Event "AZE-ch Women 2019"]
[Site "Baku"]
[Date "2019.02.04"]
[Round "1.5"]
[White "Hojjatova, Aydan"]
[Black "Babayeva, Samira"]
[Result "1-0"]
[ECO "B00"]
[WhiteElo "2303"]
[BlackElo "1773"]
[Annotator "RC"]
[PlyCount "61"]
[EventDate "2019.02.04"]
[EventType "swiss"]
[EventCountry "AZE"]
[SourceTitle "playchess.com"]
[Source "ChessBase"]
[SourceQuality "1"]
[TimeControl "40/5400+30:1800+30"]

1. e4 {[%emt 0:00:00]} d6 {[%emt 0:14:34]} 2. d4 {[%emt 0:00:00]} c6 {[%emt 0:00:06]} 3. Nc3 {[%emt 0:00:00]} Qc7 {[%emt 0:00:25]} 4. f4 {[%emt 0:00:18]} e5 {[%emt 0:00:50]} 5. Nf3 {[%emt 0:00:28]} Bg4 {[%emt 0:01:14]} 6. Be3 {[%emt 0:01:00]} Be7 {[%emt 0:01:13]} 7. Be2 {[%emt 0:05:13]} Nd7 {[%emt 0:02:53]} 8. O-O {[%emt 0:01:45]} f6 {[%emt 0:03:33]} 9. a4 {[%emt 0:08:29]} Nh6 {[%emt 0:07:19]} 10. Bc4 {[%emt 0:07:54]} f5 {[%emt 0:11:07]} 11. h3 {[%emt 0:04:25]} Bxf3 {[%emt 0:02:57]} 12. Qxf3 {[%emt 0:00:49]} O-O-O {[%emt 0:00:19]} 13. Be6 {[%emt 0:06:14]} fxe4 {[%emt 0:02:15]} 14. Qxe4 {[%emt 0:01:32]} d5 {[%emt 0:03:30]} 15. Qxe5 {[%emt 0:01:06]} Bf6 {[%emt 0:02:10]} 16. Qxc7+ {[%emt 0:06:57]} Kxc7 {[%emt 0:00:07]} 17. g4 {[%emt 0:00:18]} Rhe8 {[%emt 0:02:41]} 18. f5 {[%emt 0:02:03]} Nf8 {[%emt 0:00:49]} 19. g5 {[%emt 0:00:41]} Nxe6 {[%emt 0:01:31]} 20. fxe6 {[%emt 0:00:20]} Rxe6 {[%emt 0:00:33]} 21. Bf4+ {[%emt 0:00:09]} Kc8 {[%emt 0:00:16]} 22. gxf6 {[%emt 0:00:11]} Rxf6 {[%emt 0:00:11]} 23. Be5 {[%emt 0:00:57]} Rg6+ {[%emt 0:00:34]} 24. Kh2 {[%emt 0:00:12]} Rd7 {[%emt 0:00:21]} 25. Rf8+ {[%emt 0:00:21]} Rd8 {[%emt 0:00:08]} 26. Raf1 {[%emt 0:00:09]} a6 {[%emt 0:02:21]} 27. a5 {[%emt 0:00:10]} Rg5 {[%emt 0:01:21]} 28. Na4 {[%emt 0:01:30]} Rxf8 {[%emt 0:01:11]} 29. Rxf8+ {[%emt 0:00:05]} Kd7 {[%emt 0:00:05]} 30. Nc5+ {[%emt 0:00:26]} Ke7 {[%emt 0:00:15]} 31. Rb8 {[%emt 0:00:14]} 1-0

[Event "AZE-ch Women 2019"]
[Site "Baku"]
[Date "2019.02.04"]
[Round "1.8"]
[White "Jafarova, Aysel"]
[Black "Beydullayeva, Govhar"]
[Result "0-1"]
[ECO "A06"]
[WhiteElo "1376"]
[BlackElo "2239"]
[Annotator "RC"]
[PlyCount "88"]
[EventDate "2019.02.04"]
[EventType "swiss"]
[EventCountry "AZE"]
[SourceTitle "playchess.com"]
[Source "ChessBase"]
[SourceQuality "1"]
[TimeControl "40/5400+30:1800+30"]

1. Nf3 {[%emt 0:00:00]} d5 {[%emt 0:00:00]} 2. c4 {[%emt 0:00:00]} c6 {[%emt 0:00:04]} 3. g3 {[%emt 0:00:07]} dxc4 {[%emt 0:01:23]} 4. Bg2 {[%emt 0:01:18]} Nf6 {[%emt 0:01:13]} 5. O-O {[%emt 0:00:49]} e6 {[%emt 0:02:20]} 6. Qc2 {[%emt 0:05:59]} b5 {[%emt 0:01:11]} 7. a4 {[%emt 0:02:02]} Bb7 {[%emt 0:00:27]} 8. b3 {[%emt 0:02:41]} cxb3 {[%emt 0:01:08]} 9. Qxb3 {[%emt 0:00:35]} b4 {[%emt 0:04:08]} 10. Bb2 {[%emt 0:04:30]} c5 {[%emt 0:02:58]} 11. d3 {[%emt 0:06:03]} Bd5 {[%emt 0:02:37]} 12. Qc2 {[%emt 0:02:13]} Nbd7 {[%emt 0:02:27]} 13. Nbd2 {[%emt 0:00:44]} Be7 {[%emt 0:00:30]} 14. Nc4 {[%emt 0:06:38]} a5 {[%emt 0:09:09]} 15. Nfd2 {[%emt 0:06:48]} O-O {[%emt 0:07:25]} 16. Rac1 {[%emt 0:04:04]} Qc7 {[%emt 0:03:34]} 17. f4 {[%emt 0:02:57]} Bxg2 {[%emt 0:15:35]} 18. Kxg2 {[%emt 0:00:10]} Rfd8 {[%emt 0:01:58]} 19. Ne5 {[%emt 0:09:56]} Qb7+ {[%emt 0:06:39]} 20. Kg1 {[%emt 0:01:09]} Nd5 {[%emt 0:00:21]} 21. Nec4 {[%emt 0:04:06]} N7b6 {[%emt 0:02:51]} 22. Rf3 {[%emt 0:02:14]} Qc6 {[%emt 0:08:31]} 23. Ra1 {[%emt 0:01:15]} Bf6 {[%emt 0:03:50]} 24. Bxf6 {[%emt 0:01:17]} Nxf6 {[%emt 0:05:21]} 25. Ne5 {[%emt 0:03:27]} Qd6 {[%emt 0:00:18]} 26. Ndc4 {[%emt 0:03:02]} Qd4+ {[%emt 0:00:30]} 27. Kg2 {[%emt 0:04:01]} Nxc4 {[%emt 0:00:08]} 28. Qxc4 {[%emt 0:03:29]} Qxa1 {[%emt 0:00:15]} 29. Qxc5 {[%emt 0:01:27]} Qxa4 {[%emt 0:00:21]} 30. Rf1 {[%emt 0:02:47]} Rac8 {[%emt 0:00:08]} 31. Qf2 {[%emt 0:01:50]} Qb5 {[%emt 0:00:08]} 32. Nc4 {[%emt 0:01:10]} a4 {[%emt 0:00:15]} 33. Ra1 {[%emt 0:00:24]} a3 {[%emt 0:00:04]} 34. Qe1 {[%emt 0:00:16]} Qd5+ {[%emt 0:00:15]} 35. Kg1 {[%emt 0:00:25]} Qd4+ {[%emt 0:00:04]} 36. Kg2 {[%emt 0:00:15]} Rxc4 {[%emt 0:00:29]} 37. dxc4 {[%emt 0:00:15]} Ng4 {[%emt 0:00:05]} 38. Rc1 {[%emt 0:01:44]} Ne3+ {[%emt 0:00:23]} 39. Kf3 {[%emt 0:00:12]} f5 {[%emt 0:00:06]} 40. Qg1 {[%emt 0:00:00]} Qe4+ {[%emt 0:00:00]} 41. Kf2 {[%emt 0:01:28]} b3 {[%emt 0:00:39]} 42. c5 {[%emt 0:02:40]} b2 {[%emt 0:00:10]} 43. Re1 {[%emt 0:02:48]} b1=Q {[%emt 0:00:23]} 44. Rxb1 {[%emt 0:00:52]} Ng4+ {[%emt 0:00:10]} 0-1

[Event "AZE-ch Women 2019"]
[Site "Baku"]
[Date "2019.02.04"]
[Round "1.9"]
[White "Allahverdiyeva, Ayan"]
[Black "Hajiyeva, Altunay"]
[Result "1-0"]
[ECO "C77"]
[WhiteElo "2051"]
[BlackElo "1315"]
[Annotator "NA RC"]
[PlyCount "149"]
[EventDate "2019.02.04"]
[EventType "swiss"]
[EventCountry "AZE"]
[SourceTitle "playchess.com"]
[Source "ChessBase"]
[SourceQuality "1"]
[TimeControl "40/5400+30:1800+30"]

{[%evp 10,148,23,6,11,0,0,-12,5,12,22,17,25,-4,7,16,10,-4,22,32767,29,39,40,32767,32767,93,138,130,170,169,32767,123,138,138,147,142,176,145,131,106,138,64,154,153,215,216,351,303,402,437,466,506,516,484,536,32767,32767,32767,32767,32767,32767,32767,522,594,597,606,606,635,618,702,694,612,577,674,725,642,685,810,786,878,893,952,1023,32767,32767,32767,32767,32767,32767,32767,32767,32767,32767,32767,32767,32767,32767,32767,32767,32767,32767,32767,32767,32767,32767,32767,32767,32767,32767,32767,32767,32767,32767,32767,29989,32767,32767,32767,32767,29988,29992,29989,29989,29990,29990,29991,29991,29992,29992,32767,29993,29994,29994,32767,32767,32767,29997,29998,29998,29999,29999]} 1. e4 {[%emt 0:00:39]} e5 {[%emt 0:00:00]} 2. Nf3 {[%emt 0:00:05]} Nc6 {[%emt 0:00:00]} 3. Bb5 {[%emt 0:00:05]} a6 {[%emt 0:00:00]} 4. Ba4 {[%emt 0:00:06]} Nf6 {[%emt 0:00:30]} 5. d3 {[%emt 0:02:40]} d6 {[%emt 0:00:59]} 6. O-O {[%emt 0:01:40]} b5 {[%emt 0:00:25]} 7. Bb3 {[%emt 0:00:04]} Na5 {[%emt 0:00:48]} 8. Nc3 {[%emt 0:02:03]} h6 {[%emt 0:01:23]} 9. Re1 {[%emt 0:04:36]} c6 {[%emt 0:12:25]} 10. d4 {[%emt 0:06:01]} Qc7 {[%emt 0:04:10]} 11. a4 {[%emt 0:18:33]} Nxb3 {[%emt 0:04:16]} 12. cxb3 {[%emt 0:03:00]} b4 {[%emt 0:11:11]} 13. Nb1 {[%emt 0:06:32]} a5 {[%emt 0:03:10]} 14. Qc2 {[%emt 0:01:38]} Be7 {[%emt 0:07:00]} 15. dxe5 {[%emt 0:08:15]} dxe5 {[%emt 0:03:26]} 16. Nxe5 {[%emt 0:01:20]} Bb7 {[%emt 0:12:13]} ({Black should play} 16... O-O $14 17. Nf3 (17. Nxc6 Bd8 $14) (17. Qxc6 $2 Qxe5 18. Nd2 Ba6 $19) 17... Re8) 17. Nd3 {[%emt 0:03:38]} c5 {[%emt 0:09:16]} 18. Bf4 {[%emt 0:03:27]} Qb6 {[%emt 0:02:07]} 19. Nd2 {[%emt 0:01:18]} O-O {[%emt 0:06:13]} 20. Ne5 {[%emt 0:04:10]} Qe6 {[%emt 0:04:36]} 21. Nec4 {[%emt 0:01:29]} Rfd8 {[%emt 0:01:34]} 22. f3 {[%emt 0:01:49]} Ne8 {[%emt 0:04:45]} 23. e5 {[%emt 0:02:59]} Ba6 {[%emt 0:02:22] Nd} 24. Nd6 {[%emt 0:08:05]} Qd5 {[%emt 0:02:11]} 25. Qe4 {[%emt 0:01:18]} (25. N2c4 $16) 25... Qxe4 {[%emt 0:00:33]} (25... Qd4+ $142 26. Qxd4 cxd4) 26. N2xe4 {[%emt 0:01:24]} ({Don't do} 26. N6xe4 $6 Nc7 $14) 26... Bxd6 {[%emt 0:01:57]} (26... Bc8 $16 27. Rad1 Nc7) 27. exd6 {[%emt 0:00:39]} ({But not} 27. Nxd6 $6 Bc8 $16) 27... c4 {[%emt 0:01:14]} (27... Bc8 $142 28. Nxc5 Nf6) 28. Nc5 {[%emt 0:02:02]} Nxd6 {[%emt 0:01:04]} 29. Rad1 {[%emt 0:00:21]} Nb7 {[%emt 0:00:42]} 30. Rxd8+ {[%emt 0:00:28]} Nxd8 {[%emt 0:00:02]} 31. Nxa6 {[%emt 0:00:14]} Rxa6 {[%emt 0:01:24]} 32. Re8+ {[%emt 0:00:07]} Kh7 {[%emt 0:00:08]} 33. Rxd8 {[%emt 0:00:02]} Rc6 {[%emt 0:01:39]} 34. bxc4 {[%emt 0:03:14]} Rxc4 {[%emt 0:00:03]} 35. Bd2 {[%emt 0:00:11]} Rc2 {[%emt 0:01:26]} 36. b3 {[%emt 0:00:34]} Rb2 {[%emt 0:00:37]} 37. Rd3 {[%emt 0:00:04]} Rc2 {[%emt 0:00:20]} 38. Kf2 {[%emt 0:01:24]} Rc5 {[%emt 0:00:57]} 39. Rd6 {[%emt 0:01:19]} Rc2 {[%emt 0:01:09]} 40. Ke3 {[%emt 0:00:00]} Rb2 {[%emt 0:00:00]} 41. Rd3 {[%emt 0:01:30]} Rc2 {[%emt 0:00:40]} 42. Ke4 {[%emt 0:00:43]} Rc6 {[%emt 0:00:59]} 43. Rd5 {[%emt 0:01:45]} Rc2 {[%emt 0:03:54]} 44. Kd3 {[%emt 0:02:12]} Rb2 {[%emt 0:00:44]} 45. Kc4 {[%emt 0:00:31]} Rb1 {[%emt 0:03:21]} 46. Rxa5 {[%emt 0:01:11]} Rg1 {[%emt 0:00:24]} 47. Bxb4 {[%emt 0:00:28]} Rxg2 {[%emt 0:00:22]} 48. Rh5 {[%emt 0:00:27]} Rg6 {[%emt 0:01:29]} 49. a5 {[%emt 0:00:15]} Rf6 {[%emt 0:00:35]} 50. Bc3 {[%emt 0:00:38]} Rxf3 {[%emt 0:00:40]} 51. a6 {[%emt 0:00:21]} Re3 {[%emt 0:00:17]} 52. a7 {[%emt 0:00:19]} Re8 {[%emt 0:00:16]} 53. Ra5 {[%emt 0:00:11]} Ra8 {[%emt 0:00:30]} 54. Kb5 {[%emt 0:00:09]} f5 {[%emt 0:01:59]} 55. Kb6 {[%emt 0:00:41]} f4 {[%emt 0:01:02]} 56. Kb7 {[%emt 0:00:02]} Rf8 {[%emt 0:01:20]} 57. a8=Q {[%emt 0:01:12]} Rxa8 {[%emt 0:00:10]} 58. Kxa8 {[%emt 0:00:06]} g5 {[%emt 0:00:26]} 59. Rf5 {[%emt 0:00:15]} Kg6 {[%emt 0:00:25]} 60. Rf6+ {[%emt 0:00:06]} Kh5 {[%emt 0:00:09]} 61. h3 {[%emt 0:00:09]} Kh4 {[%emt 0:01:59]} 62. Rxh6+ {[%emt 0:00:10]} Kg3 {[%emt 0:00:10]} 63. Rh5 {[%emt 0:00:07]} f3 {[%emt 0:01:17]} 64. Rxg5+ {[%emt 0:00:05]} Kxh3 {[%emt 0:01:03]} 65. Rf5 {[%emt 0:00:44]} Kg4 {[%emt 0:00:21]} 66. Rf8 {[%emt 0:00:04]} Kg3 {[%emt 0:00:16]} 67. Bd4 {[%emt 0:00:21]} Kg2 {[%emt 0:00:34]} 68. b4 {[%emt 0:00:02]} f2 {[%emt 0:00:16]} 69. Rxf2+ {[%emt 0:00:22]} Kg3 {[%emt 0:00:06]} 70. b5 {[%emt 0:00:01]} Kg4 {[%emt 0:00:10]} 71. b6 {[%emt 0:00:03]} Kg5 {[%emt 0:00:08]} 72. b7 {[%emt 0:00:02]} Kg4 {[%emt 0:00:08]} 73. b8=Q {[%emt 0:00:03]} Kg5 {[%emt 0:00:06]} 74. Qg3+ {[%emt 0:00:04]} Kh5 {[%emt 0:00:09]} 75. Rh2# {[%emt 0:00:08]} 1-0